bitfinex/quotes_BTCUSD_20240623
["timestamp","ask_amount","ask_price","bid_price","bid_amount"]
[1719142835874,0.879042,64417.0,64416.0,0.41794706]
[1719142836049,0.96945469,64417.0,64416.0,0.41794706]
[1719142838887,0.90654152,64417.0,64416.0,0.41794706]
[1719142839101,0.969593,64417.0,64416.0,0.41794706]
[1719142840726,0.969593,64417.0,64416.0,0.38754171]
[1719142840960,0.969593,64417.0,64416.0,0.41113045]
[1719142842114,0.96941553,64417.0,64416.0,0.41113045]
[1719142842817,0.96942997,64417.0,64416.0,0.41113045]
[1719142843999,0.96942628,64417.0,64416.0,0.41113045]
[1719142845369,0.879042,64417.0,64416.0,0.41113045]
[1719142845610,0.96941955,64417.0,64416.0,0.41113045]
[1719142848485,0.96945775,64417.0,64416.0,0.41113045]
[1719142851774,0.879042,64417.0,64416.0,0.41113045]
[1719142851969,0.96952647,64417.0,64416.0,0.41113045]
[1719142852331,0.96952983,64417.0,64416.0,0.41113045]
[1719142853544,0.96958583,64417.0,64416.0,0.41113045]
[1719142854770,0.879042,64417.0,64416.0,0.41113045]
[1719142854979,0.9695264,64417.0,64416.0,0.41113045]
[1719142858040,0.96952666,64417.0,64416.0,0.41113045]
[1719142860548,0.65904966,64417.0,64416.0,0.41113045]
[1719142860853,0.65905147,64417.0,64416.0,0.41113045]
[1719142861490,0.65913465,64417.0,64416.0,0.41113045]
[1719142863503,0.568565,64417.0,64416.0,0.41113045]
[1719142863707,0.65912253,64417.0,64416.0,0.41113045]
[1719142864131,0.96959953,64417.0,64416.0,0.33743045]
[1719142864496,0.65912253,64417.0,64416.0,0.33743045]
[1719142866777,0.65931883,64417.0,64416.0,0.33743045]
[1719142869882,0.65990994,64417.0,64416.0,0.33743045]
[1719142870277,0.568565,64417.0,64416.0,0.33743045]
[1719142870459,0.65997026,64417.0,64416.0,0.33743045]
[1719142871548,0.65997026,64417.0,64416.0,0.34743045]
[1719142871960,0.65997026,64417.0,64416.0,0.42693045]
[1719142872090,0.65997026,64417.0,64416.0,0.41693045]
[1719142872507,0.65997026,64417.0,64416.0,0.42693045]
[1719142873122,0.6618843,64417.0,64416.0,0.41693045]
[1719142873779,0.6618843,64417.0,64416.0,0.42693045]
[1719142876213,0.66230299,64417.0,64416.0,0.42693045]
[1719142876803,0.66230299,64417.0,64416.0,0.41693045]
[1719142877766,0.66230299,64417.0,64416.0,0.42693045]
[1719142878548,0.35182599,64417.0,64416.0,0.42693045]
[1719142878838,0.35182599,64417.0,64416.0,0.41693045]
[1719142879213,0.35182599,64417.0,64416.0,0.42693045]
[1719142879419,0.28717564,64417.0,64416.0,0.42693045]
[1719142879626,0.38082703,64417.0,64416.0,0.41693045]
[1719142879973,0.38088147,64417.0,64416.0,0.41693045]
[1719142881231,0.38084962,64417.0,64416.0,0.41693045]
[1719142882601,0.38068736,64417.0,64416.0,0.41693045]
[1719142884509,0.69116436,64417.0,64416.0,0.41693045]
[1719142885889,0.68950016,64417.0,64416.0,0.41693045]
[1719142887030,0.68750016,64417.0,64416.0,0.41693045]
[1719142887278,0.68950016,64417.0,64416.0,0.41693045]
[1719142887698,0.68750016,64417.0,64416.0,0.41693045]
[1719142888056,0.68950016,64417.0,64416.0,0.41693045]
[1719142889104,0.59765264,64417.0,64416.0,0.41693045]
[1719142889259,0.68941093,64417.0,64416.0,0.41693045]
[1719142889855,0.68941094,64417.0,64416.0,0.41693045]
[1719142892291,0.59765264,64417.0,64416.0,0.41693045]
[1719142892421,0.68951497,64417.0,64416.0,0.41693045]
[1719142893643,0.66042733,64417.0,64416.0,0.41693045]
[1719142898470,0.568565,64417.0,64416.0,0.41693045]
[1719142898728,0.59677988,64417.0,64416.0,0.41693045]
[1719142898946,0.66051245,64417.0,64416.0,0.41693045]
[1719142899150,0.66081109,64417.0,64416.0,0.41693045]
[1719142900433,0.6604056,64417.0,64416.0,0.41693045]
[1719142901871,0.66068377,64417.0,64416.0,0.41693045]
[1719142908191,0.66022895,64417.0,64416.0,0.41693045]
[1719142908727,0.66022894,64417.0,64416.0,0.41693045]
[1719142909766,0.66020125,64417.0,64416.0,0.41693045]
[1719142909967,0.61020125,64417.0,64416.0,0.41693045]
[1719142910521,0.56020125,64417.0,64416.0,0.41693045]
[1719142911283,0.468565,64417.0,64416.0,0.41693045]
[1719142911489,0.56032188,64417.0,64416.0,0.41693045]
[1719142913271,0.56032188,64417.0,64416.0,0.41693048]
[1719142913914,0.56032188,64417.0,64416.0,0.24503048]
[1719142914274,0.56032188,64417.0,64416.0,0.33453048]
[1719142914516,0.468565,64417.0,64416.0,0.33453048]
[1719142914725,0.56041624,64417.0,64416.0,0.33453048]
[1719142915367,0.55841624,64417.0,64416.0,0.33453048]
[1719142915570,0.56041624,64417.0,64416.0,0.33453048]
[1719142916000,0.55841624,64417.0,64416.0,0.33453048]
[1719142916220,0.56041624,64417.0,64416.0,0.33453048]
[1719142917533,0.468565,64417.0,64416.0,0.33453048]
[1719142917736,0.49671696,64417.0,64416.0,0.33453048]
[1719142917919,0.56038901,64417.0,64416.0,0.33453048]
[1719142918126,0.56032586,64417.0,64416.0,0.33453048]
[1719142918507,0.55832586,64417.0,64416.0,0.33453048]
[1719142918706,0.56032586,64417.0,64416.0,0.33453048]
[1719142919113,0.55832586,64417.0,64416.0,0.33453048]
[1719142919894,0.56032586,64417.0,64416.0,0.33453048]
[1719142920731,0.560515,64417.0,64416.0,0.33453048]
[1719142922802,0.560515,64417.0,64416.0,0.32477798]
[1719142923170,0.468565,64417.0,64416.0,0.32477798]
[1719142923515,0.56154093,64417.0,64416.0,0.32477798]
[1719142926187,0.468565,64417.0,64416.0,0.32477798]
[1719142926395,0.56208221,64417.0,64416.0,0.32477798]
[1719142926792,0.468565,64417.0,64416.0,0.32477798]
[1719142927008,0.56208221,64417.0,64416.0,0.32477798]
[1719142928904,0.56008221,64417.0,64416.0,0.32477798]
[1719142929136,0.56208221,64417.0,64416.0,0.32477798]
[1719142929370,0.56008221,64417.0,64416.0,0.32477798]
[1719142929579,0.56008549,64417.0,64416.0,0.33407964]
[1719142929787,0.56208549,64417.0,64416.0,0.33407964]
[1719142932577,0.468565,64417.0,64416.0,0.33407964]
[1719142932778,0.56176062,64417.0,64416.0,0.33407964]
[1719142935676,0.56172764,64417.0,64416.0,0.33407964]
[1719142936283,0.468565,64417.0,64416.0,0.33407964]
[1719142936531,0.56196825,64417.0,64416.0,0.33407964]
[1719142936702,0.87244525,64417.0,64416.0,0.33407964]
[1719142937614,0.87238928,64417.0,64416.0,0.33407964]
[1719142938960,0.779042,64417.0,64416.0,0.33407964]
[1719142939147,0.87244611,64417.0,64416.0,0.33407964]
[1719142939588,0.87244611,64417.0,64416.0,0.32561144]
[1719142940845,0.87244611,64417.0,64416.0,0.23611144]
[1719142941046,1.18292311,64417.0,64416.0,0.22058212]
[1719142941232,1.18292311,64417.0,64416.0,0.01575978]
[1719142941233,1.49340011,64417.0,64416.0,0.01575978]
[1719142941438,1.59340011,64417.0,64416.0,0.00109008]
[1719142941838,1.499996,64417.0,64416.0,0.00109008]
[1719142942047,1.59283628,64417.0,64416.0,0.00109008]
[1719142942494,1.70152997,64417.0,64416.0,0.00109008]
[1719142942691,1.70852997,64417.0,64416.0,0.00209008]
[1719142942893,1.71352997,64417.0,64416.0,0.00309008]
[1719142943777,1.60283628,64417.0,64416.0,0.00309008]
[1719142945059,1.509996,64417.0,64416.0,0.00309008]
[1719142945265,1.61587848,64417.0,64416.0,0.00309008]
[1719142945467,1.509996,64417.0,64416.0,0.00309008]
[1719142945699,1.61588524,64417.0,64416.0,0.00309008]
[1719142946297,1.509996,64417.0,64416.0,0.00309008]
[1719142946463,1.61587783,64417.0,64416.0,0.00309008]
[1719142946787,1.61587801,64417.0,64416.0,0.00309008]
[1719142952371,1.61558385,64417.0,64416.0,0.00309008]
[1719142953566,1.30510685,64417.0,64416.0,0.00309008]
[1719142954629,1.199519,64417.0,64416.0,0.00309008]
[1719142954874,1.30490569,64417.0,64416.0,0.00309008]
[1719142955310,1.199519,64417.0,64416.0,0.00309008]
[1719142955518,1.3049363,64417.0,64416.0,0.00309008]
[1719142955936,1.3049363,64417.0,64416.0,0.01393202]
[1719142956138,1.44468715,64417.0,64416.0,0.01393202]
[1719142957491,1.44468715,64417.0,64416.0,0.02946134]
[1719142957715,1.44570664,64417.0,64416.0,0.01393202]
[1719142961016,1.44496331,64417.0,64416.0,0.01393202]
[1719142962608,1.44496331,64417.0,64416.0,0.00309008]
[1719142964020,1.23497819,64417.0,64416.0,0.00309008]
[1719142964225,1.44535868,64417.0,64416.0,0.00309008]
[1719142964576,1.199519,64417.0,64416.0,0.00309008]
[1719142964727,1.44502852,64417.0,64416.0,0.00309008]
[1719142965724,1.199519,64417.0,64416.0,0.00309008]
[1719142966070,1.44478506,64417.0,64416.0,0.00309008]
[1719142967260,1.44466744,64417.0,64416.0,0.00309008]
[1719142969261,1.4811891,64417.0,64416.0,0.02136202]
[1719142970330,1.34143988,64417.0,64416.0,0.02136202]
[1719142970531,1.4514142,64417.0,64416.0,0.02136202]
[1719142972365,1.4514142,64417.0,64416.0,0.00309008]
[1719142972561,1.4514142,64417.0,64416.0,0.0030901]
[1719142973498,1.23604066,64417.0,64416.0,0.0030901]
[1719142973739,1.45130354,64417.0,64416.0,0.0030901]
[1719142975332,1.45130518,64417.0,64416.0,0.0030901]
[1719142976807,1.45124386,64417.0,64416.0,0.0030901]
[1719142979828,1.23604066,64417.0,64416.0,0.0030901]
[1719142980069,1.45131975,64417.0,64416.0,0.0030901]
[1719142982224,1.23604066,64417.0,64416.0,0.0030901]
[1719142982435,1.45128815,64417.0,64416.0,0.0030901]
[1719142983479,1.45128815,64417.0,64416.0,0.03678136]
[1719142983863,1.45128815,64417.0,64416.0,0.02125204]
[1719142984065,1.45128815,64417.0,64416.0,0.03678136]
[1719142984247,1.45210716,64417.0,64416.0,0.03678136]
[1719142984453,1.45210716,64417.0,64416.0,0.02125204]
[1719142984575,1.45210716,64417.0,64416.0,0.03678136]
[1719142985513,1.45193017,64417.0,64416.0,0.03678136]
[1719142986954,1.45193017,64417.0,64416.0,0.02125204]
[1719142987614,1.45278017,64417.0,64416.0,0.03678136]
[1719142987819,1.4739506,64417.0,64416.0,0.03678136]
[1719142988589,1.473942,64417.0,64416.0,0.03678136]
[1719142990512,1.473942,64417.0,64416.0,0.02125204]
[1719142991868,1.25806109,64417.0,64416.0,0.02125204]
[1719142992106,1.47408854,64417.0,64416.0,0.02125204]
[1719142992326,1.43872285,64417.0,64416.0,0.02125204]
[1719142992543,1.47408896,64417.0,64416.0,0.0030901]
[1719142993305,1.47408896,64417.0,64416.0,0.01861942]
[1719142993516,1.47354716,64417.0,64416.0,0.0030901]
[1719142994151,1.47354716,64417.0,64416.0,0.01861942]
[1719142994350,1.47354716,64417.0,64416.0,0.0030901]
[1719142994946,1.25806109,64417.0,64416.0,0.0030901]
[1719142995151,1.47330178,64417.0,64416.0,0.0030901]
[1719142996050,1.47330178,64417.0,64416.0,0.02125204]
[1719142997925,1.25806109,64417.0,64416.0,0.02125204]
[1719142998135,1.47323761,64417.0,64416.0,0.02125204]
[1719143000807,1.47323761,64417.0,64416.0,0.03678136]
[1719143001202,1.47322788,64417.0,64416.0,0.03678136]
[1719143001659,1.25806109,64417.0,64416.0,0.03678136]
[1719143001859,1.47322914,64417.0,64416.0,0.03678136]
[1719143002109,1.47322914,64417.0,64416.0,0.02125204]
[1719143003152,1.47318672,64417.0,64416.0,0.02125204]
[1719143003357,1.47318672,64417.0,64416.0,0.03678136]
[1719143003558,1.47318672,64417.0,64416.0,0.02125204]
[1719143004219,1.47318672,64417.0,64416.0,0.03678136]
[1719143004440,1.4731564,64417.0,64416.0,0.02125204]
[1719143006071,1.25806109,64417.0,64416.0,0.02125204]
[1719143006285,1.47314293,64417.0,64416.0,0.02125204]
[1719143006502,1.25806109,64417.0,64416.0,0.02125204]
[1719143006674,1.47261858,64417.0,64416.0,0.02125204]
[1719143007694,1.47262651,64417.0,64416.0,0.02125204]
[1719143008484,1.63012234,64417.0,64416.0,0.0030901]
[1719143009099,1.47262651,64417.0,64416.0,0.0030901]
[1719143009789,1.63012234,64417.0,64416.0,0.0030901]
[1719143010711,1.6297338,64417.0,64416.0,0.0030901]
[1719143012407,1.41555787,64417.0,64416.0,0.0030901]
[1719143012647,1.62950144,64417.0,64416.0,0.0030901]
[1719143013850,1.62949032,64417.0,64416.0,0.0030901]
[1719143017021,1.62905341,64417.0,64416.0,0.0030901]
[1719143020022,1.32765642,64417.0,64416.0,0.0030901]
[1719143020261,1.62880363,64417.0,64416.0,0.0030901]
[1719143020445,1.47130457,64417.0,64416.0,0.0030901]
[1719143020613,1.62880552,64417.0,64416.0,0.0030901]
[1719143021809,1.62883118,64417.0,64416.0,0.0030901]
[1719143023185,1.44887708,64417.0,64416.0,0.0030901]
[1719143023384,1.73428713,64417.0,64416.0,0.0030901]
[1719143025931,1.57678852,64417.0,64416.0,0.02134204]
[1719143026141,1.73428713,64417.0,64416.0,0.02134204]
[1719143026319,1.57673113,64417.0,64416.0,0.02134204]
[1719143026739,1.73422983,64417.0,64416.0,0.02134204]
[1719143027912,1.88720813,64417.0,64416.0,0.0030901]
[1719143028342,2.19768513,64417.0,64416.0,0.0030901]
[1719143028758,2.36138513,64417.0,64416.0,0.0030901]
[1719143029085,3.94864325,64417.0,64416.0,0.0030901]
[1719143029290,3.94864325,64417.0,64399.0,0.0964]
[1719143029291,0.155279,64400.0,64399.0,0.0964]
[1719143029511,0.98666725,64400.0,64399.0,0.0964]
[1719143029708,1.29722625,64400.0,64399.0,0.12700324]
[1719143029940,1.29722625,64400.0,64399.0,0.13691382]
[1719143030388,1.29722625,64400.0,64396.0,0.0964]
[1719143030389,0.21027025,64400.0,64396.0,0.0964]
[1719143030576,0.776432,64397.0,64396.0,0.0964]
[1719143030806,1.29727525,64397.0,64396.0,0.0964]
[1719143031027,1.187005,64397.0,64396.0,0.0964]
[1719143031226,1.29646486,64397.0,64396.0,0.0964]
[1719143032185,1.30246486,64397.0,64396.0,0.0964]
[1719143032393,1.191005,64397.0,64396.0,0.0964]
[1719143032592,1.30069966,64397.0,64396.0,0.0964]
[1719143032820,1.30269966,64397.0,64396.0,0.0964]
[1719143033179,1.30669966,64397.0,64396.0,0.0964]
[1719143033743,1.42309654,64397.0,64396.0,0.0964]
[1719143034040,1.30669966,64397.0,64396.0,0.0964]
[1719143034496,1.42307287,64397.0,64396.0,0.0964]
[1719143035480,1.30715308,64397.0,64396.0,0.0964]
[1719143035687,1.42352106,64397.0,64396.0,0.0964]
[1719143036487,1.15186708,64397.0,64396.0,0.0964]
[1719143036737,1.30715308,64397.0,64396.0,0.0964]
[1719143038696,1.40020777,64397.0,64396.0,0.0964]
[1719143038898,1.40005297,64397.0,64396.0,0.0964]
[1719143039337,1.40005292,64397.0,64396.0,0.0964]
[1719143040108,1.30701573,64397.0,64396.0,0.0964]
[1719143040318,1.39997259,64397.0,64396.0,0.0964]
[1719143041142,1.399953,64397.0,64396.0,0.0964]
[1719143041795,1.30692814,64397.0,64396.0,0.0964]
[1719143042370,1.30692814,64397.0,64396.0,0.11192932]
[1719143043197,1.37668524,64397.0,64396.0,0.11192932]
[1719143044235,1.376677,64397.0,64396.0,0.11192932]
[1719143045102,1.30692457,64397.0,64396.0,0.0964]
[1719143045523,1.30692457,64397.0,64396.0,0.11192932]
[1719143047238,1.30692457,64397.0,64396.0,0.0964]
[1719143047498,1.19716029,64397.0,64396.0,0.0964]
[1719143047686,1.30686889,64397.0,64396.0,0.0964]
[1719143047900,1.19716029,64397.0,64396.0,0.0964]
[1719143048073,1.30686906,64397.0,64396.0,0.0964]
[1719143048403,1.37660948,64397.0,64396.0,0.0964]
[1719143049072,1.30686906,64397.0,64396.0,0.0964]
[1719143049309,1.30701357,64397.0,64396.0,0.0964]
[1719143049985,1.37675207,64397.0,64396.0,0.0964]
[1719143050212,1.30701357,64397.0,64396.0,0.0964]
[1719143050696,1.3069331,64397.0,64396.0,0.0964]
[1719143051171,1.3069331,64397.0,64396.0,0.097335]
[1719143051623,1.37667026,64397.0,64396.0,0.097335]
[1719143052072,1.37667026,64397.0,64396.0,0.11286432]
[1719143052305,1.3069331,64397.0,64396.0,0.097335]
[1719143052528,1.37667026,64397.0,64396.0,0.097335]
[1719143052777,1.37667026,64397.0,64396.0,0.11286432]
[1719143053777,1.3764547,64397.0,64396.0,0.11286432]
[1719143054242,1.3264547,64397.0,64396.0,0.13205775]
[1719143054943,1.3264547,64397.0,64396.0,0.11652843]
[1719143055375,1.3264547,64397.0,64396.0,0.13205775]
[1719143056696,1.18446015,64397.0,64396.0,0.13205775]
[1719143056917,1.32658738,64397.0,64396.0,0.13205775]
[1719143057128,1.32658738,64397.0,64396.0,0.11286432]
[1719143057335,1.32639211,64397.0,64396.0,0.11286432]
[1719143058572,1.3263982,64397.0,64396.0,0.11286432]
[1719143058976,1.3263982,64397.0,64396.0,0.097335]
[1719143059978,1.32628154,64397.0,64396.0,0.097335]
[1719143061352,1.32628154,64397.0,64396.0,0.11286432]
[1719143061501,1.25652813,64397.0,64396.0,0.11286432]
[1719143061698,1.32629222,64397.0,64396.0,0.11286432]
[1719143062571,1.25652813,64397.0,64396.0,0.11286432]
[1719143062784,1.32629835,64397.0,64396.0,0.11286432]
[1719143062984,1.32629835,64397.0,64396.0,0.13205775]
[1719143062985,1.14716029,64397.0,64396.0,0.13205775]
[1719143063223,1.32619084,64397.0,64396.0,0.13205775]
[1719143063423,1.25642061,64397.0,64396.0,0.13205775]
[1719143064908,1.25642061,64397.0,64396.0,0.11286432]
[1719143065842,1.34944759,64397.0,64396.0,0.11286432]
[1719143066252,1.24021894,64397.0,64396.0,0.11286432]
[1719143066429,1.34960612,64397.0,64396.0,0.11286432]
[1719143066661,1.14716029,64397.0,64396.0,0.11286432]
[1719143066852,1.34961901,64397.0,64396.0,0.11286432]
[1719143067089,1.34961901,64397.0,64396.0,0.13205775]
[1719143067527,1.25654759,64397.0,64396.0,0.13205775]
[1719143068081,1.2565462,64397.0,64396.0,0.11286432]
[1719143069427,1.14716029,64397.0,64396.0,0.11286432]
[1719143069638,1.37291444,64397.0,64396.0,0.11286432]
[1719143070599,1.25653331,64397.0,64396.0,0.11286432]
[1719143072649,1.21924313,64397.0,64396.0,0.11286432]
[1719143072846,1.25622657,64397.0,64396.0,0.11286432]
[1719143073052,1.25622657,64397.0,64396.0,0.097335]
[1719143073409,1.25622657,64397.0,64396.0,0.11286432]
[1719143074552,1.39603352,64397.0,64396.0,0.11286432]
[1719143074795,1.39603352,64397.0,64396.0,0.13205775]
[1719143075923,1.25632393,64397.0,64396.0,0.13205775]
[1719143076127,1.39628031,64397.0,64396.0,0.13205775]
[1719143076327,1.14716029,64397.0,64396.0,0.13205775]
[1719143076528,1.39625363,64397.0,64396.0,0.13205775]
[1719143077618,1.39625695,64397.0,64396.0,0.13205775]
[1719143078967,1.2871201,64397.0,64396.0,0.13205775]
[1719143079125,1.39611902,64397.0,64396.0,0.13205775]
[1719143081230,1.39617039,64397.0,64396.0,0.13205775]
[1719143082176,1.39617735,64397.0,64396.0,0.13205775]
[1719143082524,1.39617735,64397.0,64396.0,0.11652843]
[1719143082704,1.39617735,64397.0,64396.0,0.13205775]
[1719143085254,1.14716029,64397.0,64396.0,0.13205775]
[1719143085455,1.39609346,64397.0,64396.0,0.13205775]
[1719143085717,1.2561149,64397.0,64396.0,0.13205775]
[1719143085849,1.25611715,64397.0,64396.0,0.13205775]
[1719143087074,1.25612208,64397.0,64396.0,0.13205775]
[1719143088556,1.25626974,64397.0,64396.0,0.13205775]
[1719143089934,1.2773004,64397.0,64396.0,0.20478765]
[1719143090105,0.2402954,64397.0,64396.0,0.36291887]
[1719143090303,0.3955814,64397.0,64396.0,0.36291887]
[1719143090508,0.3955814,64397.0,64396.0,0.37771339]
[1719143090509,0.37455074,64397.0,64396.0,0.37771339]
[1719143091639,0.37433106,64397.0,64396.0,0.37771339]
[1719143094184,0.49094345,64397.0,64396.0,0.37771339]
[1719143094757,0.49075936,64397.0,64396.0,0.37771339]
[1719143095189,0.38204341,64397.0,64396.0,0.37771339]
[1719143095393,0.49075175,64397.0,64396.0,0.37771339]
[1719143096585,0.49086281,64397.0,64396.0,0.37771339]
[1719143097922,0.49080585,64397.0,64396.0,0.37771339]
[1719143099368,0.37422477,64397.0,64396.0,0.37771339]
[1719143100396,0.80137885,64397.0,64396.0,0.37771339]
[1719143100966,0.57601429,64397.0,64396.0,0.36291887]
[1719143101168,0.68428246,64397.0,64396.0,0.36291887]
[1719143101278,0.68428246,64397.0,64396.0,0.37771339]
[1719143102367,0.80085101,64397.0,64396.0,0.37771339]
[1719143102653,0.68428246,64397.0,64396.0,0.37771339]
[1719143102800,0.80085144,64397.0,64396.0,0.37771339]
[1719143103358,0.69258891,64397.0,64396.0,0.37771339]
[1719143103577,0.80108608,64397.0,64396.0,0.37771339]
[1719143104030,0.80109045,64397.0,64396.0,0.37771339]
[1719143104416,0.80108948,64397.0,64396.0,0.37771339]
[1719143104776,0.68451146,64397.0,64396.0,0.37771339]
[1719143104974,0.80109027,64397.0,64396.0,0.37771339]
[1719143105181,0.80098581,64397.0,64396.0,0.37771339]
[1719143105495,0.68440882,64397.0,64396.0,0.37771339]
[1719143106445,0.6126484,64397.0,64396.0,0.37771339]
[1719143106648,0.68447012,64397.0,64396.0,0.37771339]
[1719143106848,0.80104662,64397.0,64396.0,0.37771339]
[1719143107398,0.80104521,64397.0,64396.0,0.37771339]
[1719143109627,0.80086316,64397.0,64396.0,0.37771339]
[1719143110873,0.68429075,64397.0,64396.0,0.37771339]
[1719143111283,0.80086468,64397.0,64396.0,0.37771339]
[1719143111487,0.68429075,64397.0,64396.0,0.37771339]
[1719143112799,0.64771715,64397.0,64396.0,0.37771339]
[1719143113186,0.6835894,64397.0,64396.0,0.37771339]
[1719143113331,0.80016113,64397.0,64396.0,0.37771339]
[1719143113536,0.68358693,64397.0,64396.0,0.37771339]
[1719143114728,0.68359139,64397.0,64396.0,0.37771339]
[1719143114934,0.99416439,64397.0,64396.0,0.37771339]
[1719143115975,0.99418092,64397.0,64396.0,0.37771339]
[1719143117492,0.99503092,64397.0,64396.0,0.37771339]
[1719143119094,0.99526343,64397.0,64396.0,0.37771339]
[1719143122215,0.88743729,64397.0,64396.0,0.37771339]
[1719143122432,1.00743778,64397.0,64396.0,0.37771339]
[1719143122774,0.88743729,64397.0,64396.0,0.37771339]
[1719143122954,1.00743984,64397.0,64396.0,0.37771339]
[1719143125214,0.88743729,64397.0,64396.0,0.37771339]
[1719143125423,1.32183873,64397.0,64396.0,0.37771339]
[1719143126934,1.32191432,64397.0,64396.0,0.37771339]
[1719143128598,1.32203763,64397.0,64396.0,0.37771339]
[1719143131644,1.19801029,64397.0,64396.0,0.37771339]
[1719143131861,1.32187059,64397.0,64396.0,0.37771339]
[1719143132221,1.32187058,64397.0,64396.0,0.37771339]
[1719143134925,1.32173247,64397.0,64396.0,0.37771339]
[1719143138045,1.19801029,64397.0,64396.0,0.37771339]
[1719143138323,1.32119622,64397.0,64396.0,0.37771339]
[1719143140738,1.46113015,64397.0,64396.0,0.37771339]
[1719143141271,1.38212539,64397.0,64396.0,0.37771339]
[1719143141561,1.46107841,64397.0,64396.0,0.37771339]
[1719143141712,1.16607175,64397.0,64396.0,0.37771339]
[1719143141941,1.32135775,64397.0,64396.0,0.37771339]
[1719143142348,1.32135624,64397.0,64396.0,0.37771339]
[1719143143181,1.31935476,64397.0,64396.0,0.37771339]
[1719143143935,1.41935476,64397.0,64396.0,0.37771339]
[1719143144353,1.41931831,64397.0,64396.0,0.37771339]
[1719143147075,1.2793898,64397.0,64396.0,0.37771339]
[1719143147519,1.2793666,64397.0,64396.0,0.37771339]
[1719143150650,1.27940658,64397.0,64396.0,0.37771339]
[1719143152429,1.27947076,64397.0,64396.0,0.37771339]
[1719143153734,1.27932508,64397.0,64396.0,0.37771339]
[1719143156962,1.20018342,64397.0,64396.0,0.37771339]
[1719143157189,1.27916864,64397.0,64396.0,0.37771339]
[1719143159003,1.31105803,64397.0,64396.0,0.37771339]
[1719143160180,1.187855,64397.0,64396.0,0.37771339]
[1719143160379,1.3110623,64397.0,64396.0,0.37771339]
[1719143160840,1.311022,64397.0,64396.0,0.37771339]
[1719143161963,1.31095199,64397.0,64396.0,0.37771339]
[1719143162515,1.31095199,64397.0,64396.0,0.37786845]
[1719143165617,1.31064236,64397.0,64396.0,0.37786845]
[1719143168734,1.187855,64397.0,64396.0,0.37786845]
[1719143168946,1.31082098,64397.0,64396.0,0.37786845]
[1719143169451,1.31082099,64397.0,64396.0,0.37786845]
[1719143170624,1.3108275,64397.0,64396.0,0.37786845]
[1719143171942,1.31079857,64397.0,64396.0,0.37786845]
[1719143174448,1.31079857,64397.0,64396.0,0.37786847]
[1719143175048,1.31140886,64397.0,64396.0,0.37786847]
[1719143178121,1.187855,64397.0,64396.0,0.37786847]
[1719143178357,1.31145211,64397.0,64396.0,0.37786847]
[1719143178756,1.187855,64397.0,64396.0,0.37786847]
[1719143179084,1.31146318,64397.0,64396.0,0.37786847]
[1719143180082,1.187855,64397.0,64396.0,0.37786847]
[1719143180255,1.31146549,64397.0,64396.0,0.37786847]
[1719143181443,1.31141328,64397.0,64396.0,0.37786847]
[1719143182680,1.31141328,64397.0,64396.0,0.36233915]
[1719143182879,1.31141328,64397.0,64396.0,0.37786847]
[1719143183106,1.31141328,64397.0,64396.0,0.36233915]
[1719143184090,1.45139124,64397.0,64396.0,0.36233915]
[1719143184290,1.45139124,64397.0,64396.0,0.37786847]
[1719143184495,1.45103184,64397.0,64396.0,0.37786847]
[1719143185287,1.45018184,64397.0,64396.0,0.37786847]
[1719143186095,1.45018184,64397.0,64396.0,0.36233915]
[1719143186929,1.45018184,64397.0,64396.0,0.37786847]
[1719143187130,1.45014675,64397.0,64396.0,0.37786847]
[1719143187512,1.32698473,64397.0,64396.0,0.37786847]
[1719143187707,1.32698722,64397.0,64396.0,0.37786847]
[1719143187939,1.31016694,64397.0,64396.0,0.37786847]
[1719143188173,1.187005,64397.0,64396.0,0.37786847]
[1719143188380,1.45014038,64397.0,64396.0,0.37786847]
[1719143189476,1.45008922,64397.0,64396.0,0.37786847]
[1719143190934,1.45011809,64397.0,64396.0,0.37786847]
[1719143191120,1.31012396,64397.0,64396.0,0.37786847]
[1719143191319,1.4501231,64397.0,64396.0,0.37786847]
[1719143191518,1.31012396,64397.0,64396.0,0.37786847]
[1719143191920,1.45012163,64397.0,64396.0,0.37786847]
[1719143193947,1.23117938,64397.0,64396.0,0.37786847]
[1719143194149,1.45039541,64397.0,64396.0,0.37786847]
[1719143197168,1.32700779,64397.0,64396.0,0.37786847]
[1719143197421,1.45043207,64397.0,64396.0,0.37786847]
[1719143197562,1.23043334,64397.0,64396.0,0.37786847]
[1719143197762,1.23043333,64397.0,64396.0,0.37786847]
[1719143198083,1.38571933,64397.0,64396.0,0.37786847]
[1719143199071,1.38571323,64397.0,64396.0,0.37786847]
[1719143200513,1.38593729,64397.0,64396.0,0.37786847]
[1719143201281,1.24594033,64397.0,64396.0,0.37786847]
[1719143201681,1.38593946,64397.0,64396.0,0.37786847]
[1719143202100,1.24594033,64397.0,64396.0,0.37786847]
[1719143202433,1.38593946,64397.0,64396.0,0.37786847]
[1719143203675,1.38587547,64397.0,64396.0,0.37786847]
[1719143203896,1.24587692,64397.0,64396.0,0.37786847]
[1719143204236,1.38587547,64397.0,64396.0,0.37786847]
[1719143204821,1.24587692,64397.0,64396.0,0.37786847]
[1719143205415,1.38587547,64397.0,64396.0,0.37786847]
[1719143206185,1.24587692,64397.0,64396.0,0.37786847]
[1719143206795,1.24582193,64397.0,64396.0,0.37786847]
[1719143207411,1.24574971,64397.0,64396.0,0.37786847]
[1719143208527,1.24581077,64397.0,64396.0,0.37786847]
[1719143209967,1.24580216,64397.0,64396.0,0.37786847]
[1719143210798,1.26621434,64397.0,64396.0,0.37786847]
[1719143212947,1.40621159,64397.0,64396.0,0.37786847]
[1719143213176,1.26621352,64397.0,64396.0,0.37786847]
[1719143216209,1.26623607,64397.0,64396.0,0.37786847]
[1719143216833,1.266339,64397.0,64396.0,0.37786847]
[1719143218224,1.26634937,64397.0,64396.0,0.37786847]
[1719143219418,1.40634931,64397.0,64396.0,0.37786847]
[1719143219597,1.40635772,64397.0,64396.0,0.36233915]
[1719143219744,1.40635772,64397.0,64396.0,0.37786847]
[1719143219947,1.26635454,64397.0,64396.0,0.37786847]
[1719143220308,1.40635772,64397.0,64396.0,0.36233915]
[1719143220541,1.26635454,64397.0,64396.0,0.36233915]
[1719143220854,1.26635454,64397.0,64396.0,0.37786847]
[1719143221072,1.26635454,64397.0,64396.0,0.36233915]
[1719143221823,1.26635454,64397.0,64396.0,0.37786847]
[1719143221824,1.14270445,64397.0,64396.0,0.37786847]
[1719143222025,1.26658968,64397.0,64396.0,0.37786847]
[1719143223874,1.26658968,64397.0,64396.0,0.0158846]
[1719143224074,1.57716268,64397.0,64396.0,0.0158846]
[1719143224241,1.57716268,64397.0,64396.0,0.00109008]
[1719143224807,1.45327745,64397.0,64396.0,0.00109008]
[1719143225005,1.57698195,64397.0,64396.0,0.00109008]
[1719143225448,1.57747604,64397.0,64396.0,0.00109008]
[1719143227943,1.5759763,64397.0,64396.0,0.00109008]
[1719143228761,1.69319945,64397.0,64396.0,0.00109008]
[1719143231093,1.69323996,64397.0,64396.0,0.00109008]
[1719143232329,1.5759506,64397.0,64396.0,0.00109008]
[1719143233341,1.087156,64388.0,64387.0,0.1017]